Cogmind - Beta 15 @@@ ROGUE MODE // 2025.08.24 @ 23:14:24 Player: Naughtyusername Result: Destroyed by X-87 Electro with Compact HERF Cannon Performance ------------- Evolutions (8) 4000 Regions Visited (27) 5400 Robots Destroyed (362) 1810 Value Destroyed (14667) 14667 Prototype IDs (61) 1220 Alien Tech Used (2) 400 Bonus (9297) 9297 TOTAL SCORE: 36794 Bonus ------- High Alert Combat Kills 1748 Follower Combat Kills 2182 Network Hubs Disabled 200 Met Data Miner 300 Met Imprinter 300 MAIN.C Attacked Warlord 500 Warlord Defense Kills 1282 Built Enhanced Grunts 300 A7 Reached Mainframe 300 Met R17 at Cetus 500 Met R17 at Research 2000 Scanned by Researcher 500 Friendly Fire -815 Cogmind --------- Core Integrity 0/1450 Matter 244/300 Energy 605/700 System Corruption 45% Temperature Cool (0) Movement Core (50) Location -2/Research Parts ------- > --- POWER (3) -------- (None) > --- PROPULSION (6) --- (None) > --- UTILITY (12) ----- Experimental Energy Well Spectral Analyzer Experimental Target Analyzer Experimental Armor Integrity Analyzer > --- WEAPON (3) ------- (None) > --- INVENTORY (5) ---- High-capacity Storage Unit Long-range Sensor Array Long-range Terrain Scanner Advanced ECM Suite Precision Phase Gun Peak State ------------ > --- POWER ------------ Quantum Reactor Improved Quantum Reactor Improved Quantum Reactor > --- PROPULSION ------- Enhanced Armored Leg Biometal Leg Biometal Leg Biometal Leg Centrium Leg Centrium Leg > --- UTILITY ---------- 2N-1CE's Frost Array High-capacity Storage Unit Spectral Analyzer Advanced Signal Interpreter Advanced Terrain Scan Processor Advanced Targeting Computer Experimental Target Analyzer Advanced Particle Charger Weapon Cycler Light Regenerative Plating Advanced Shield Generator System Mapper > --- WEAPON ----------- High-powered Disruptor Cannon Cooled Nova Cannon > --- INVENTORY -------- Myomer Leg Advanced Power Amplifier Advanced Coolant Injector Advanced Energy Well Experimental Energy Well Long-range Sensor Array Long-range Terrain Scanner Experimental Armor Integrity Analyzer Precision Energy Filter Advanced ECM Suite Advanced Reaction Control System Long-range Tractor Beam Mobile Refinery Mk. CCLXVII Precision Phase Gun Heavy Quantum Rifle Improved Matter Neutralizer Improved Matter Neutralizer Vortex Driver Fusion Bomb Launcher Fusion Bomb Launcher [Rating: 205] Favorites ----------- Power Heavy Ion Engine Engine Heavy Ion Engine Power Core Neutrino Core Reactor Light Antimatter Reactor Propulsion Armored Huge Wheel Treads Light Treads Leg Enhanced Biometal Leg Wheel Armored Huge Wheel Utility Improved Signal Interpreter Device Advanced Sensor Array Storage Huge Storage Unit Processor Improved Signal Interpreter Hackware Hacking Suite Protection Light Regenerative Plating Weapon Cooled Plasma Cannon Energy Gun Variable Charge Gun Energy Cannon Cooled Plasma Cannon Ballistic Gun Enhanced Autogun Launcher Heavy Missile Launcher Special Weapon RU-N14's Throwing Claymores Slashing Weapon Ripper Build | -11 -10 -9 -9 -8 -7 -7 -7 -7 -6 -6 -6 -6 -6 -5 -5 -5 -5 -5 -4 -4 -4 -4 -4 -4 -3 -3 -2 ------- Run | Yrd Mat Mat Sto Mat Fac Low Low Dat Pro Fac Low Low Zio Pro Fac Upp Upp War Pro Fac Ext Cet Arc Hub Res Tes Res Slots Evolved 16 | . . 2 . 2 2 . . . . 2 . . . . 2 . . . . 2 . . . . 2 . 2 Power 2 | . . . . . . . . . . . . . . . 1 . . . . 1 . . . . . . . Propulsion 4 | . . 1 . . 1 . . . . 1 . . . . 1 . . . . . . . . . . . . Utility 10 | . . 1 . 2 1 . . . . 1 . . . . . . . . . 1 . . . . 2 . 2 Weapon . | . . . . . . . . . . . . . . . . . . . . . . . . . . . . Parts Attached 264 | 7 4 27 13 29 18 2 1 . 6 24 3 1 5 2 6 1 4 7 . 18 14 4 7 6 8 17 30 Power 40 | 1 . 2 . 7 2 . 1 . . . 1 . . . 1 . . 2 . 3 8 . . . 1 2 9 Engine 9 | 1 . 2 . 2 . . 1 . . . 1 . . . 1 . . 1 . . . . . . . . . Core 11 | . . . . 5 2 . . . . . . . . . . . . . . . 4 . . . . . . Reactor 20 | . . . . . . . . . . . . . . . . . . 1 . 3 4 . . . 1 2 9 Propulsion 68 | 2 2 11 6 7 5 . . . 2 8 . 1 . 1 2 . . . . 5 4 1 . 3 1 2 5 Treads 25 | . 2 3 6 7 5 . . . 1 1 . . . . . . . . . . . . . . . . . Leg 23 | . . . . . . . . . 1 1 . . . . . . . . . 5 4 1 . 3 1 2 5 Wheel 20 | 2 . 8 . . . . . . . 6 . 1 . 1 2 . . . . . . . . . . . . Hover . | . . . . . . . . . . . . . . . . . . . . . . . . . . . . Flight . | . . . . . . . . . . . . . . . . . . . . . . . . . . . . Utility 93 | 2 1 5 1 8 8 1 . . . 14 1 . 3 . 3 . 3 2 . 9 1 3 3 3 4 5 13 Device 39 | 1 . . . 1 2 . . . . 5 1 . 1 . 2 . 2 2 . 6 1 3 1 . 1 4 6 Storage 13 | 1 1 1 . 2 . . . . . 2 . . 1 . . . . . . . . . . 1 1 1 2 Processor 12 | . . 1 . 2 1 . . . . 1 . . . . . . . . . 1 . . 1 . 1 . 4 Hackware 9 | . . . . . 3 . . . . 2 . . . . . . . . . 2 . . 1 1 . . . Protection 20 | . . 3 1 3 2 1 . . . 4 . . 1 . 1 . 1 . . . . . . 1 1 . 1 Artifact . | . . . . . . . . . . . . . . . . . . . . . . . . . . . . Weapon 63 | 2 1 9 6 7 3 1 . . 4 2 1 . 2 1 . 1 1 3 . 1 1 . 4 . 2 8 3 Energy Gun 8 | . . . . . . . . . . . . . . . . . . 2 . . 1 . 1 . . 4 . Energy Cannon 13 | . . . 2 1 . . . . . 1 1 . . . . . . 1 . 1 . . . . 1 2 3 Ballistic Gun 28 | 2 1 7 2 5 3 . . . 2 1 . . . . . . 1 . . . . . 3 . 1 . . Ballistic Cannon . | . . . . . . . . . . . . . . . . . . . . . . . . . . . . Launcher 8 | . . 2 1 1 . . . . 2 . . . . . . . . . . . . . . . . 2 . Special Weapon 5 | . . . 1 . . . . . . . . . 2 1 . 1 . . . . . . . . . . . Impact Weapon . | . . . . . . . . . . . . . . . . . . . . . . . . . . . . Slashing Weapon 1 | . . . . . . 1 . . . . . . . . . . . . . . . . . . . . . Piercing Weapon . | . . . . . . . . . . . . . . . . . . . . . . . . . . . . Special Melee Weapon . | . . . . . . . . . . . . . . . . . . . . . . . . . . . . Unidentified Prototypes 35 | . . 1 1 1 . 1 . . . . . . 2 . . 1 1 3 . 1 . 2 3 3 2 7 6 Parts Lost 98 | . 4 10 1 10 4 . . . 4 2 . . . 1 . 3 . 2 . 4 2 . . 3 1 8 39 Power 18 | . 1 1 . 3 . . . . . . . . . . . 1 . 2 . . 1 . . 2 . 1 6 Propulsion 33 | . 2 6 . 3 2 . . . 3 2 . . . 1 . . . . . 1 . . . . . 4 9 Utility 30 | . . 1 . 3 2 . . . . . . . . . . 1 . . . 2 . . . 1 1 3 16 Weapon 17 | . 1 2 1 1 . . . . 1 . . . . . . 1 . . . 1 1 . . . . . 8 Highest Loss Streak 28 | . 4 4 1 3 2 . . . 2 1 . . . 1 . 3 . 1 . 3 1 . . 2 1 7 28 To Critical Strikes . | . . . . . . . . . . . . . . . . . . . . . . . . . . . . Average Backups 20 | 1 4 17 19 19 19 19 20 20 19 19 20 21 23 22 22 23 23 23 24 22 23 24 23 23 22 23 18 Power 1 | . . 2 2 1 1 2 1 1 1 1 1 1 1 1 1 2 2 1 1 1 3 3 2 2 1 . . Propulsion 1 | 1 1 2 3 3 1 . 1 1 1 . 3 3 3 2 1 2 2 2 2 1 . . 1 1 2 1 . Utility 12 | . 1 5 6 9 10 11 12 13 13 13 11 12 14 15 16 14 16 16 15 14 15 15 14 12 10 13 10 Weapon 4 | . . 7 6 4 5 5 5 5 4 4 5 5 5 3 3 2 1 3 4 4 4 3 5 7 8 6 6 Tool/Special . | . . . . . . . . . . . . . . . . . . . . . . . . . . . . Unused Backups 51 | . . 9 4 5 3 . . . . 3 . 1 5 . . . 3 5 . 3 . 4 . 2 1 2 1 Power 5 | . . 1 . . . . . . . . . . . . . . . 2 . . . 1 . . . 1 . Propulsion 9 | . . 3 3 . . . . . . . . . . . . . 1 1 . . . . . . 1 . . Utility 23 | . . . . 3 3 . . . . 3 . 1 2 . . . 2 2 . 3 . 3 . 1 . . . Weapon 14 | . . 5 1 2 . . . . . . . . 3 . . . . . . . . . . 1 . 1 1 Tool/Special . | . . . . . . . . . . . . . . . . . . . . . . . . . . . . Average Slot Usage (%) 92 | . 98 94 100 98 99 99 100 82 93 91 92 90 83 80 80 81 83 82 83 88 95 100 99 99 92 90 94 Engine 4 | . 13 10 11 4 . . 6 7 7 6 6 6 6 6 11 11 11 10 11 1 . . . . . . . Core 1 | . . . . 4 7 7 . . . . . . . . . . . . . . 5 5 5 4 . . . Reactor 2 | . . . . . . . . . . . . . . . . . . . . 13 9 10 10 9 8 8 10 Treads 9 | . 19 6 33 26 29 28 28 28 17 3 . . . . . . . . . . . . . . . . . Leg 6 | . . . . . . . . . 4 1 . . . . . . . . . 11 25 30 30 29 27 26 23 Wheel 8 | . 8 22 . . . . . . . 19 25 22 18 17 18 16 16 16 16 7 . . . . . . . Device 9 | . 14 3 . . 6 6 6 7 6 6 11 11 11 11 11 12 15 14 15 13 9 10 10 9 14 18 16 Storage 7 | . 14 11 11 17 7 7 7 7 7 6 6 6 6 6 5 5 5 5 5 5 5 5 5 5 4 4 4 Processor 12 | . . 10 11 17 13 14 14 14 14 10 12 12 12 12 11 11 11 11 11 12 15 15 15 15 13 13 17 Hackware 4 | . . . . . 15 14 14 14 14 16 . . . . . . . . . 5 . . 3 6 4 4 3 Protection 5 | . . 7 11 8 1 . . . . 1 12 12 10 6 5 9 5 6 5 4 9 10 6 4 7 3 4 Energy Gun 1 | . . . . . . . . . . . . . . . . . . 2 5 . 6 10 6 . . 4 7 Energy Cannon 3 | . . . . . . . . . . . 4 5 5 5 7 10 11 9 3 10 7 5 3 2 5 4 2 Ballistic Gun 11 | . 27 21 19 17 14 18 17 3 20 17 13 12 10 9 9 3 4 3 1 1 . . 4 12 5 . . Peak Build Rating 205 | 7 7 20 20 32 43 47 47 46 51 61 64 71 75 72 89 91 93 104 103 127 128 137 147 152 161 191 205 Average Rating 76 | 5 6 15 19 26 39 44 46 36 47 54 63 67 69 69 78 83 88 96 96 118 119 131 142 147 152 175 188 On Entrance 74 | . 7 4 19 18 32 42 47 46 46 47 58 56 71 72 68 89 83 91 100 96 126 128 135 144 133 160 168 Naked Turns . | . . . . . . . . . . . . . . . . . . . . . . . . . . . . Heaviest Build 195 | 14 50 62 60 61 61 57 66 59 66 118 121 119 130 131 135 139 131 143 131 161 151 155 155 152 161 195 142 Greatest Support 164 | 26 40 63 63 65 90 90 90 90 90 76 76 76 72 72 84 84 84 84 84 118 148 156 156 158 153 163 164 Greatest Overweight (x) 5 | 1 4 5 . . 1 . . . 1 2 1 1 1 2 1 1 1 1 1 5 1 1 . 1 1 1 2 Average Overweight (x) . | . 1 1 . . . . . . . . 1 1 1 1 1 1 1 1 1 1 . . . . . . . Largest Inventory Capacity 25 | 8 20 20 20 20 20 20 20 20 20 25 25 25 25 25 25 25 25 25 25 25 25 25 25 25 25 25 20 Average Capacity 22 | 7 19 20 20 20 20 20 20 20 20 22 25 25 25 25 25 25 25 25 25 25 25 25 25 25 25 24 19 Most Carried 25 | 2 6 20 20 20 20 20 20 20 20 25 23 25 25 25 25 25 25 25 25 25 25 25 25 25 25 25 20 Average Carried 21 | 1 4 17 19 19 19 19 19 20 19 20 22 23 24 23 23 24 24 24 24 23 24 24 24 24 23 23 18 Final Capacity 25 | 8 20 20 20 20 20 20 20 20 20 25 25 25 25 25 25 25 25 25 25 25 25 25 25 25 25 20 5 Final Carried 25 | 2 4 18 20 20 18 20 20 20 20 22 23 25 25 22 25 24 25 25 25 25 25 25 25 25 25 20 5 Class Distribution -------------------- 22% | Skirmisher 22% | Hacker-Skirmisher 12% | Mutant 11% | Scavenger-Mutant 8% | Hacker-Mutant 6% | Commander-Skirmisher 4% | Commander-Gunner 3% | Scavenger-Skirmisher Dominant Class ---------------- Mutant | -10/Materials Scavenger-Mutant | -9/Materials Mutant | -9/Storage Mutant | -8/Materials Hacker-Mutant | -7/Factory Hacker-Skirmisher | -7/Lower Caves Hacker-Skirmisher | -7/Lower Caves Hacker-Mutant | -7/Data Miner Hacker-Skirmisher | -6/Proximity Caves Hacker-Skirmisher | -6/Factory Skirmisher | -6/Lower Caves Scavenger-Skirmisher | -6/Lower Caves Skirmisher | -6/Zion Skirmisher | -5/Proximity Caves Skirmisher | -5/Factory Skirmisher | -5/Upper Caves Commander-Skirmisher | -5/Upper Caves Commander-Skirmisher | -5/Warlord Skirmisher | -4/Proximity Caves Skirmisher | -4/Factory Commander-Gunner | -4/Extension Commander-Gunner | -4/Cetus Commander-Skirmisher | -4/Archives Commander-Skirmisher | -4/Hub_04(d) Hacker-Skirmisher | -3/Research Hacker-Skirmisher | -3/Testing Hacker-Skirmisher | -2/Research Resources | -11 -10 -9 -9 -8 -7 -7 -7 -7 -6 -6 -6 -6 -6 -5 -5 -5 -5 -5 -4 -4 -4 -4 -4 -4 -3 -3 -2 ----------- Run | Yrd Mat Mat Sto Mat Fac Low Low Dat Pro Fac Low Low Zio Pro Fac Upp Upp War Pro Fac Ext Cet Arc Hub Res Tes Res Matter Collected 13421 | 289 128 1727 503 1031 1221 257 111 . 342 1456 562 105 115 180 257 267 282 434 119 264 712 82 131 379 394 772 1301 Remotely 1108 | . . . . . 176 . . . . 297 9 . . . 55 . . . . . . . . . . . 571 Salvage Created 15454 | 162 199 1659 491 1581 919 153 80 . 336 1308 445 189 . 199 301 276 329 480 123 536 1070 143 150 399 255 1055 2616 Parts 723 | 13 25 112 38 80 59 10 2 . 14 40 20 3 . 7 8 8 8 20 11 15 24 4 8 20 14 56 104 Haulers Intercepted 20 | . . 5 1 3 2 . . . . 1 . . . . . . 1 . . 1 . . . 2 1 . 3 Recyclers Shooed 12 | 1 1 . 1 . 3 . . . . 4 . . . . . . . . . . . . . 1 1 . . Parts Field Recycled . | . . . . . . . . . . . . . . . . . . . . . . . . . . . . Retrieved Matter . | . . . . . . . . . . . . . . . . . . . . . . . . . . . . Parts Self-Destructed 86 | . . . . . . 10 4 . 10 . 14 1 1 11 . 6 18 . 11 . . . . . . . . Prevented . | . . . . . . . . . . . . . . . . . . . . . . . . . . . . Kills | -11 -10 -9 -9 -8 -7 -7 -7 -7 -6 -6 -6 -6 -6 -5 -5 -5 -5 -5 -4 -4 -4 -4 -4 -4 -3 -3 -2 ------- Run | Yrd Mat Mat Sto Mat Fac Low Low Dat Pro Fac Low Low Zio Pro Fac Upp Upp War Pro Fac Ext Cet Arc Hub Res Tes Res Combat Hostiles Destroyed 272 | . 8 38 17 25 14 5 1 . 9 12 10 . . 10 3 9 7 14 4 8 10 3 1 3 2 16 43 Guns 140 | . 8 25 10 25 14 5 1 . 5 12 4 . . 3 1 . . 5 1 . 3 1 . 3 2 5 7 Cannons 32 | . . . . . . . . . . . . . . 1 2 2 . . . 7 7 1 . . . 2 10 AOE 92 | . . 13 7 . . . . . 4 . 6 . . 6 . 6 7 9 3 . . . . . . 7 24 Classes Destroyed 25 | 3 3 4 1 1 1 . 1 . 1 1 1 . . . . . . 2 . . . . . . 1 1 4 Worker 21 | 1 1 5 . 1 1 . . . . 1 . . . . . . . . . . . . . 1 . 5 5 Builder 13 | . . 3 1 1 1 . . . . 1 . . . . . . . . . . . . . . . 4 2 Tunneler 4 | 3 . 1 . . . . . . . . . . . . . . . . . . . . . . . . . Hauler 20 | . . 5 1 3 2 . . . . 1 . . . . . . 1 . . 1 . . . 2 1 . 3 Recycler 13 | 1 . . . 2 . . . . . 4 . . . . 1 . . . . . 2 . . 1 . 1 1 Minesweeper 3 | . . . . . . . 1 . . . . . . . . . . . 2 . . . . . . . . Mechanic 1 | . . . . . . . . . . . . . . . . . . . . . . . . . . 1 . Operator 3 | . . . . . . . . . . 1 . . . . . . . . . . . . 2 . . . . Drone 2 | . . . . . . . . . 2 . . . . . . . . . . . . . . . . . . Watcher 10 | . 1 2 . 1 1 . . . . 1 . . . . . . . . . . . . . . . 2 2 Swarmer 79 | . 6 13 6 4 . 4 . . 7 . 8 . . 3 . 4 3 2 4 . . . . 3 1 5 6 Saboteur 3 | . . . . . . . . . . . . . . . . . . 2 . . . . . . . . 1 Grunt 87 | . 2 14 5 10 5 . 1 . . 6 1 . . 5 . 3 4 7 . 3 6 . . . . . 15 Brawler 3 | . . . 1 . . . . . . 1 . . . 1 . . . . . . . . . . . . . Protector 5 | . . 1 2 . . . . . . . . . . . . . . 2 . . . . . . . . . Sentry 38 | . . 10 3 9 6 1 . . . 1 1 . . . . . . . . 1 3 . 1 . . . 2 Demolisher 1 | . . . . . . . . . . . . . . . . . . 1 . . . . . . . . . Specialist 1 | . . . . . . . . . . . . . . . . . . . . . . . . . . . 1 Hunter 21 | . . . . 2 . . . . . 1 . . . . 1 . . . . 2 1 . . . 1 4 9 Programmer 24 | . . . . . 3 . . . . 3 . . . 1 2 2 . . . 2 . . . . . 7 4 Heavy 1 | . . . . . . . . . . . . . . . . . . . . . . . . . . . 1 Q-Series 2 | . . . . . . . . . . . . . . . . . . . . . . . . . . . 2 Cetus Guard 3 | . . . . . . . . . . . . . . . . . . . . . . 3 . . . . . Executioner 2 | . . . . . . . . . . . . . . . . . . . . . . . . . . . 2 Decomposer 6 | . . . . . . . . . . . 3 3 . . . . . . . . . . . . . . . Packrat 1 | . . . . . . . . . . . 1 . . . . . . . . . . . . . . . . Samaritan 3 | . . . . . . . . . . . 2 . . . . . 1 . . . . . . . . . . Thug 1 | . . . . . . . . . . . . . . . . . . . . . 1 . . . . . . Revision 1 | . . . . . . . . . . . . . . . . . . . . . . . . . 1 . . Best Kill Streak 16 | 4 4 7 8 6 7 4 1 . 5 5 4 . . 4 3 5 5 11 4 5 3 2 2 7 2 8 16 Combat Bots Only 12 | . 4 7 7 4 6 4 1 . 5 4 4 . . 4 3 5 4 11 4 5 3 2 1 3 1 5 12 Max Kills in Single Turn 5 | 1 2 2 5 2 2 1 1 . 2 2 3 1 . 3 1 4 3 1 3 1 1 1 1 3 1 5 4 Gunslinging 1 | . 1 . 1 . . . . . . . . . . . . . . . . . . . . 1 . . . Exploded 5 | . . 2 5 . . . . . 2 . 3 . . 3 . 4 3 1 3 . . . . . . 3 4 Melee . | . . . . . . . . . . . . . . . . . . . . . . . . . . . . Uniques/NPCs Destroyed . | . . . . . . . . . . . . . . . . . . . . . . . . . . . . Combat | -11 -10 -9 -9 -8 -7 -7 -7 -7 -6 -6 -6 -6 -6 -5 -5 -5 -5 -5 -4 -4 -4 -4 -4 -4 -3 -3 -2 -------- Run | Yrd Mat Mat Sto Mat Fac Low Low Dat Pro Fac Low Low Zio Pro Fac Upp Upp War Pro Fac Ext Cet Arc Hub Res Tes Res Hostile Shots Fired 2135 | . 128 172 41 159 319 90 1 . 33 80 33 . . 22 42 35 8 32 2 72 66 14 7 91 25 261 402 Missed 671 | . 32 61 11 34 113 39 . . 12 27 12 . . 5 6 13 2 9 . 23 30 6 1 23 8 61 143 Hits 1464 | . 96 111 30 125 206 51 1 . 21 53 21 . . 17 36 22 6 23 2 49 36 8 6 68 17 200 259 Melee 1 | . . . . . . . . . . 1 . . . . . . . . . . . . . . . . . Projectile 1463 | . 96 111 30 125 206 51 1 . 21 52 21 . . 17 36 22 6 23 2 49 36 8 6 68 17 200 259 AOE 6 | . . . . . . . . . . . . . . . . . . 6 . . . . . . . . . Critical Strikes 56 | . 1 9 2 5 . . . . . 4 . . . . 1 1 . 2 . . 4 2 . 1 1 12 11 Actively Blocked 1 | . . . . . . . . . . . . . . . . . . 1 . . . . . . . . . Part Disruptions 6 | . . . . . . . . . . . . . . . . . . . . . . . . 1 . 4 1 Damage Taken 23877 | . 783 1386 732 1839 1685 379 17 . 449 853 230 . . 303 493 431 93 589 39 704 715 123 168 1477 324 2408 7657 Core 3128 | . 141 150 185 205 183 63 . . 49 104 11 . . . 78 40 27 61 . 21 97 . 30 132 8 67 1476 Absorbed by Shields 2269 | . . . . . 120 . . . . . . . . . . . . 216 13 147 205 94 . . 85 1231 158 Redirected to Shielding 133 | . . . . . . . . . . . . . . . 21 . . 27 . . 28 . . 42 15 . . Ignored by Resistances 148 | . . . . . . . . . . . . . . . . . . 140 8 . . . . . . . . Regen/Repaired (Parts) 2565 | . . 62 408 . 539 . . . . 378 18 . 15 . . 17 13 245 2 277 112 18 . . 80 30 351 Core Remaining (%) 68 | 100 43 . 16 62 . . . . 57 . . . . 86 . . . . 79 . . . . 75 . 94 . Volleys Fired 1206 | 22 37 119 33 111 73 19 6 . 26 58 69 16 . 26 38 41 12 39 28 27 96 27 19 23 34 94 113 Largest 3 | 2 2 2 2 2 2 2 3 . 3 3 3 1 . 3 3 2 3 2 2 3 3 2 3 3 3 3 3 Hottest 263 | 40 40 46 68 68 53 53 78 . 78 105 93 35 . 93 140 70 105 75 75 105 150 110 190 105 105 262 263 Shots Fired 2106 | 44 74 224 64 220 146 33 12 . 52 169 83 17 1 39 65 47 23 46 29 49 158 35 45 43 52 133 203 Gun 1399 | 44 74 210 56 219 146 33 12 . 41 168 19 . 1 12 22 . 3 25 2 6 34 9 33 32 29 63 106 Cannon 535 | . . . 1 1 . . . . . 1 54 17 . 20 43 36 16 . 26 43 69 26 12 11 23 60 76 Launcher 99 | . . 14 7 . . . . . 11 . 10 . . . . . 4 21 1 . . . . . . 10 21 Special 73 | . . . . . . . . . . . . . . 7 . 11 . . . . 55 . . . . . . Kinetic 1167 | 44 74 210 56 219 146 33 12 . 41 168 19 . 1 12 22 . 3 18 1 6 . . 21 32 29 . . Thermal 678 | . . . 1 1 . . . . . 1 54 17 . 20 43 36 16 . 26 35 93 27 24 11 21 96 156 Explosive 110 | . . 14 7 . . . . . 11 . 10 . . 7 . 4 4 21 1 . . . . . . 10 21 Electromagnetic 31 | . . . . . . . . . . . . . . . . . . . . . . . . . . 17 14 Entropic 58 | . . . . . . . . . . . . . . . . . . 7 1 8 10 8 . . 2 10 12 Robot Hit Streak 24 | 6 4 16 15 23 24 8 8 . 9 9 9 7 . 9 13 19 20 5 5 11 17 8 12 6 13 10 14 Robot Miss Streak 9 | 2 5 2 3 4 5 3 . . 9 8 2 3 . 3 3 2 2 3 1 1 3 2 5 9 3 5 4 Penetration Max 1 | . . . . . 1 . . . 1 . . . . . . . . . . 1 . . . 1 1 . 1 Secondary Targets 18 | . 2 3 1 3 . . . . . 5 . . . . . . . . . . . . . 2 . 2 . Max Gunslinging Chain 2 | . 1 1 1 1 . . . . . 1 . . . . . . . . . . . . . 2 . 1 . Shots Hit Robots 1242 | 27 31 151 43 163 112 17 7 . 15 120 25 10 . 13 27 25 11 23 7 38 126 15 22 15 17 55 127 Core Hits 737 | 8 14 81 39 63 50 9 4 . 17 91 21 3 . 20 7 11 21 38 7 13 31 6 8 10 7 42 116 Critical Kills 9 | . . 1 . . . . . . 1 1 . . . . . 1 . . . . . 1 1 2 1 . . Critical Parts Destroyed 12 | . . . . . 1 . . . . . . . . . . . . . . . 1 . 1 3 . 3 3 Critical Strikes 38 | . . 1 . . 1 . . . 1 1 . . . 1 . 2 . . . 2 1 1 2 5 1 5 14 Burn 7 | . . . . . . . . . . . . . . . . . . . . . . . . . . . 7 Meltdown 3 | . . . . . . . . . . . . . . . . 1 . . . . . 1 1 . . . . Destroy 17 | . . 1 . . 1 . . . 1 1 . . . . . . . . . . . . 1 5 1 3 3 Corrupt 3 | . . . . . . . . . . . . . . . . . . . . . . . . . . 2 1 Sever 2 | . . . . . . . . . . . . . . 1 . 1 . . . . . . . . . . . Detonate 1 | . . . . . . . . . . . . . . . . . . . . . 1 . . . . . . Sunder 5 | . . . . . . . . . . . . . . . . . . . . 2 . . . . . . 3 Melee Attacks 15 | . . . . . . 1 11 . 3 . . . . . . . . . . . . . . . . . . Impact . | . . . . . . . . . . . . . . . . . . . . . . . . . . . . Slashing 15 | . . . . . . 1 11 . 3 . . . . . . . . . . . . . . . . . . Piercing . | . . . . . . . . . . . . . . . . . . . . . . . . . . . . Sneak Attacks . | . . . . . . . . . . . . . . . . . . . . . . . . . . . . Combat Hostiles . | . . . . . . . . . . . . . . . . . . . . . . . . . . . . Follow-up Attacks . | . . . . . . . . . . . . . . . . . . . . . . . . . . . . Damage Inflicted 47196 | 264 424 3082 1687 2608 2080 319 117 . 823 2280 1144 317 . 1762 737 1611 1036 2897 467 1595 2717 606 660 590 429 4674 12270 Guns 19230 | 264 420 2159 623 2601 2029 319 117 . 346 2280 209 . . 128 279 . . 514 23 125 802 261 432 557 385 1910 2447 Cannons 10276 | . . . . . . . . . . . 416 317 . 181 458 503 255 . 190 1470 1732 345 228 . . 543 3638 Explosions 17210 | . . 923 1051 . . . . . 477 . 519 . . 1349 . 953 781 2383 254 . 166 . . . . 2190 6164 Melee . | . . . . . . . . . . . . . . . . . . . . . . . . . . . . Ramming 221 | . 4 . 13 7 51 . . . . . . . . . . . . . . . 17 . . 33 44 31 21 Kinetic 13443 | 264 420 2159 623 2601 2029 319 117 . 346 2280 209 . . 128 279 . . 320 23 125 . . 259 557 385 . . Thermal 13253 | . . . . . . . . . . . 416 317 . 181 458 503 255 . 190 973 2145 360 401 . . 2539 4515 Explosive 16277 | . . 923 1051 . . . . . 477 . 519 . . 1349 . 953 781 2383 254 . . . . . . 1623 5964 Electromagnetic 1152 | . . . . . . . . . . . . . . . . . . . . . 166 . . . . 405 581 Impact . | . . . . . . . . . . . . . . . . . . . . . . . . . . . . Slashing 259 | . . . . . . . . . . . . . . 104 . 155 . . . . . . . . . . . Piercing . | . . . . . . . . . . . . . . . . . . . . . . . . . . . . Entropic 2591 | . . . . . . . . . . . . . . . . . . 194 . 497 389 246 . . . 76 1189 Highest Corruption 45 | . 2 . 1 . 1 1 1 1 1 1 1 1 1 . 2 3 3 3 . 1 1 1 1 8 . 17 45 Average Corruption 1 | . 1 . 1 . 1 1 1 1 1 1 1 1 1 . 1 2 3 3 . 1 1 1 1 1 . 5 6 Corruption Purged . | . . . . . . . . . . . . . . . . . . . . . . . . . . . . Corruption Blocked . | . . . . . . . . . . . . . . . . . . . . . . . . . . . . Effects 171 | . 4 . 3 . 6 5 9 1 10 6 13 5 1 . 5 14 12 1 . 2 12 4 3 5 . 14 36 Message Errors 43 | . 1 . 1 . 3 1 5 . 3 1 4 2 . . 2 4 2 1 . 1 1 . . 2 . 1 8 Matter Fused 46 | . 2 . 2 . 2 3 1 . 2 1 3 2 . . . 5 4 . . . 2 1 . 1 . 6 9 Heat Flow Errors 20 | . . . . . . . . 1 1 1 2 . . . . 1 3 . . . 3 . . . . 2 6 Energy Discharges 14 | . . . . . . . . . 1 1 1 . . . 1 1 2 . . 1 . . . 1 . 2 3 Parts Rejected 3 | . . . . . . . . . . 1 . . . . . . . . . . 2 . . . . . . Data Loss (minor) 16 | . 1 . . . 1 1 . . 1 . 2 . . . . 2 1 . . . 2 . 1 . . . 4 Data Loss (major) 8 | . . . . . . . 2 . . . 1 . . . . . . . . . 1 1 2 . . . 1 Misfires 8 | . . . . . . . . . 1 . . 1 1 . . . . . . . . 1 . . . 3 1 Alerts 4 | . . . . . . . 1 . . . . . . . 1 . . . . . 1 . . 1 . . . Weapon Failures 9 | . . . . . . . . . 1 1 . . . . 1 1 . . . . . 1 . . . . 4 Overload Shots 19 | . . . . . . . . . . 1 . . . . 1 . . . . 1 . 2 . . 1 1 12 Effects 2 | . . . . . . . . . . 1 . . . . . . . . . . . . . . . . 1 Energy Bleed 1 | . . . . . . . . . . . . . . . . . . . . . . . . . . . 1 Short Circuit 1 | . . . . . . . . . . 1 . . . . . . . . . . . . . . . . . Overflow Damage 1049 | . . 1 5 . . . . . 85 . 121 102 . 4 . 68 14 1 24 28 21 . 10 . 7 139 419 Projectiles 670 | . . . . . . . . . . . 121 102 . . . 20 14 . 24 28 21 . 10 . . 46 284 Explosions 370 | . . 1 5 . . . . . 85 . . . . 4 . 48 . 1 . . . . . . . 92 134 Melee 9 | . . . . . . . . . . . . . . . . . . . . . . . . . 7 1 1 Knockbacks . | . . . . . . . . . . . . . . . . . . . . . . . . . . . . Impact . | . . . . . . . . . . . . . . . . . . . . . . . . . . . . Kinetic . | . . . . . . . . . . . . . . . . . . . . . . . . . . . . Secondary . | . . . . . . . . . . . . . . . . . . . . . . . . . . . . Self-Inflicted Damage 720 | . . . 31 . . . . . 117 . . . . . . . . 46 36 . . . . . . 159 331 Shots 17 | . . . 1 . . . . . 4 . . . . . . . . 2 1 . . . . . . 3 6 Rammed 11 | . 1 . 2 3 5 . . . . . . . . . . . . . . . . . . . . . . Targets Rammed 21 | . 1 . 2 3 6 . . . . . . . . . . . . . . . 1 . . 2 3 2 1 Kicked 9 | . . . . . . . . . . . . . . . . . . . . . 1 . . 2 3 2 1 Crushed 1 | . . . . . 1 . . . . . . . . . . . . . . . . . . . . . . Highest Temperature 353 | . 6 37 33 50 36 16 44 148 251 252 244 . . 140 321 109 204 36 12 314 287 8 292 353 177 194 247 Average Temperature 61 | . 6 10 15 15 10 7 23 83 58 87 69 . . 53 115 50 59 9 8 110 50 5 109 99 65 87 66 Received Heat Transfer 2973 | . 48 636 126 648 486 . 9 . . 255 24 . . 48 9 66 . 72 . 87 114 . 18 129 9 . 189 Effects 14 | . . . . . . . . . . . . . . . 2 . . . . 3 2 . 6 1 . . . Energy Bleed 1 | . . . . . . . . . . . . . . . . . . . . 1 . . . . . . . Interference 12 | . . . . . . . . . . . . . . . 2 . . . . 1 2 . 6 1 . . . Damage (minor) 1 | . . . . . . . . . . . . . . . . . . . . 1 . . . . . . . Siege Activations . | . . . . . . . . . . . . . . . . . . . . . . . . . . . . Martial Activations . | . . . . . . . . . . . . . . . . . . . . . . . . . . . . Shielding Activations . | . . . . . . . . . . . . . . . . . . . . . . . . . . . . Robots Disrupted . | . . . . . . . . . . . . . . . . . . . . . . . . . . . . Combat Hostiles . | . . . . . . . . . . . . . . . . . . . . . . . . . . . . Robots Corrupted 4 | . . . . . . . . . . . . . . . . . . . . . 1 . . . . 2 1 Combat Hostiles 3 | . . . . . . . . . . . . . . . . . . . . . . . . . . 2 1 Parts Fried 8 | . . . . . . . . . . . . . . . . . . . . . 1 . . . . 4 3 Impact Corruptions 3 | . . . . . . . . . . . . . . . . . . . . . . . . . 1 1 1 Robots Melted 5 | . . . . . . . . . . . . . . . . 1 . . . 1 . 1 1 . . . 1 Combat Hostiles 5 | . . . . . . . . . . . . . . . . 1 . . . 1 . 1 1 . . . 1 Parts Melted 52 | . . . . . . . . . . . . 1 . 1 3 10 3 1 . 3 15 1 1 . . 5 8 Heat Transferred 16012 | . . . . . . . . . . . 650 500 . 250 650 700 400 . 300 1400 3366 569 522 . . 2276 4429 Parts Sabotaged . | . . . . . . . . . . . . . . . . . . . . . . . . . . . . Parts Stolen . | . . . . . . . . . . . . . . . . . . . . . . . . . . . . Parts Stripped . | . . . . . . . . . . . . . . . . . . . . . . . . . . . . Power Chain Reactions 5 | . . . . . . . . . . . . . . . . . . . . . . . . . . 2 3 Alert | -11 -10 -9 -9 -8 -7 -7 -7 -7 -6 -6 -6 -6 -6 -5 -5 -5 -5 -5 -4 -4 -4 -4 -4 -4 -3 -3 -2 ------- Run | Yrd Mat Mat Sto Mat Fac Low Low Dat Pro Fac Low Low Zio Pro Fac Upp Upp War Pro Fac Ext Cet Arc Hub Res Tes Res Maximum Alert Level 4 | . . 2 3 1 . . . . . 2 . . . . . . . . . 1 2 2 1 3 2 2 4 Low Security (%) 41 | 100 100 33 . 9 100 . . . . . . . . . 100 . . . . 51 77 . 7 45 17 41 . Level 1 35 | . . 30 51 90 . . . . . 78 . . . . . . . . . 48 5 69 92 10 69 8 17 Level 2 20 | . . 36 47 . . . . . . 21 . . . . . . . . . . 17 30 . 11 13 50 54 Level 3 2 | . . . 1 . . . . . . . . . . . . . . . . . . . . 32 . . 20 Level 4 . | . . . . . . . . . . . . . . . . . . . . . . . . . . . 8 Level 5 . | . . . . . . . . . . . . . . . . . . . . . . . . . . . . High Security . | . . . . . . . . . . . . . . . . . . . . . . . . . . . . Max Security . | . . . . . . . . . . . . . . . . . . . . . . . . . . . . Peak Influence 1457 | 10 152 680 704 383 165 . . . . 600 . . . . 74 . . . . 329 538 445 298 920 430 510 1457 Initial 600 | . 3 59 277 278 165 . . . . 600 . . . . . . . . . . 116 300 173 80 409 21 279 Average 260 | 1 47 345 476 262 44 . . . . 337 . . . . 17 . . . . 168 162 375 247 393 281 256 585 Influence Increases 13073 | 25 329 1280 828 763 452 110 25 . 180 1070 235 5 . 230 175 216 290 259 100 551 1141 407 247 1060 189 943 1963 Destroy 0b10 Robot/C 6200 | . 160 740 460 500 280 100 20 . 140 240 200 . . 200 60 180 200 240 80 160 520 160 80 260 40 320 860 Destroy 0b10 Robot/NC 540 | 25 10 85 25 40 25 . 5 . 20 45 . 5 . . 5 5 5 10 10 5 25 10 10 35 5 65 65 Destroy Leader 1194 | . 32 204 104 148 84 10 . . 20 74 20 . . 30 20 30 10 . 10 42 42 . . 58 12 64 180 Allied During Kill 1144 | . . . 47 3 . . . . . . . . . . . 1 75 9 . . 415 170 90 334 . . . Successful Hack 402 | . 7 35 34 9 44 . . . . 63 . . . . . . . . . 75 27 . . 9 68 31 . Select Force Hacks 80 | . 30 . . . . . . . . . . . . . . . . . . . . . . 50 . . . Disable Machine 615 | . . 30 45 15 . . . . . . . . . . 15 . . . . 30 . 15 45 90 30 195 105 Anti-Garrison Action 300 | . . . . . . . . . . . . . . . . . . . . 150 . . . 150 . . . Destroy Structure 1563 | . . 111 53 3 4 . . . . 3 . . . . 60 . . . . 74 112 52 22 74 34 238 723 Advance Influence 600 | . . . . . . . . . . 600 . . . . . . . . . . . . . . . . . Partial Spotted 45 | . . . 15 . 15 . . . . . . . . . 15 . . . . . . . . . . . . Lose Combat Pursuer 390 | . 90 75 45 45 . . . . . 45 15 . . . . . . . . 15 . . . . . 30 30 Influence Decreases 11711 | 20 192 764 827 1057 670 257 25 . 180 723 475 112 . 230 145 246 180 229 240 313 841 512 450 510 931 483 1099 Entered New Map 2893 | . 2 83 381 381 200 56 . . . . 130 21 . . . 12 . 110 140 . 122 238 260 150 371 17 219 Time Decay 6891 | 20 150 561 416 556 440 201 25 . 180 553 345 91 . 220 145 204 180 56 100 273 473 214 150 150 312 386 490 Search Patrol Dispatched 150 | . . . . . . . . . . 150 . . . . . . . . . . . . . . . . . Lost Part 930 | . 40 100 10 100 30 . . . . 20 . . . 10 . 30 . 20 . 40 20 . . 30 10 80 390 Lost Ally 463 | . . 20 20 20 . . . . . . . . . . . . . 43 . . 80 60 40 180 . . . Purge Threat 384 | . . . . . . . . . . . . . . . . . . . . . 146 . . . 238 . . Squads Dispatched 81 | . 3 4 3 7 8 . . . . 8 . . . . 4 . . . . 6 3 . . 7 6 7 15 Investigation 23 | . 1 2 1 2 3 . . . . 4 . . . . . . . . . 2 . . . 2 5 . 1 Extermination 18 | . . . . . 3 . . . . 3 . . . . 1 . . . . 2 . . . 1 . 3 5 Reinforcement 24 | . 2 1 . 2 2 . . . . 1 . . . . . . . . . . 2 . . 2 1 4 7 Assault 10 | . . 1 2 . . . . . . . . . . . . . . . . 2 1 . . 2 . . 2 Garrison 6 | . . . . 3 . . . . . . . . . . 3 . . . . . . . . . . . . Intercept . | . . . . . . . . . . . . . . . . . . . . . . . . . . . . Searches Triggered 1 | . . . . . . . . . . 1 . . . . . . . . . . . . . . . . . Data Miner Redirects 7 | . . . . . . . . . . 1 . . . . . . . . . 1 . . . 2 . . 3 Construction Impeded 6 | . . . . . . . . . . . . . . . . . . . . . 1 . . 1 . 1 3 Haulers Reinforced 3 | . . . . . 1 . . . . 1 . . . . . . . . . . . . . . . . 1 Active Scanning Responses . | . . . . . . . . . . . . . . . . . . . . . . . . . . . . Cargo Convoy Interrupts 1 | . . . . . . . . . . . . . . . . . . . . . . . . . . . 1 Stealth | -11 -10 -9 -9 -8 -7 -7 -7 -7 -6 -6 -6 -6 -6 -5 -5 -5 -5 -5 -4 -4 -4 -4 -4 -4 -3 -3 -2 --------- Run | Yrd Mat Mat Sto Mat Fac Low Low Dat Pro Fac Low Low Zio Pro Fac Upp Upp War Pro Fac Ext Cet Arc Hub Res Tes Res Distress Signals 39 | . 1 7 3 5 3 . . . 1 . . . . . . . . 1 . 2 3 2 . 2 6 1 2 Communications Jammed 41 | . . . . . . . . . . . . . . . . . . . . . . . . 8 5 28 . Distress Signals 41 | . . . . . . . . . . . . . . . . . . . . . . . . 8 5 28 . Times Spotted 473 | . 23 55 29 38 21 5 1 . 11 18 10 . . 12 5 8 8 42 1 11 29 11 14 22 10 23 66 Peak Tracking Total 18 | . 8 9 10 5 6 4 1 . 5 4 4 . . 4 2 4 5 8 1 6 5 5 2 18 4 5 15 Tactical Retreats 18 | . 4 4 2 2 . . . . . 1 1 . . . . . . . . 1 . . . . . 2 1 Traps | -11 -10 -9 -9 -8 -7 -7 -7 -7 -6 -6 -6 -6 -6 -5 -5 -5 -5 -5 -4 -4 -4 -4 -4 -4 -3 -3 -2 ------- Run | Yrd Mat Mat Sto Mat Fac Low Low Dat Pro Fac Low Low Zio Pro Fac Upp Upp War Pro Fac Ext Cet Arc Hub Res Tes Res Traps Triggered 14 | . 2 4 2 2 2 . . . . . . . . . . . . . . . 2 . . . . . . Indirectly . | . . . . . . . . . . . . . . . . . . . . . . . . . . . . Trap Hack Attempts . | . . . . . . . . . . . . . . . . . . . . . . . . . . . . Triggered . | . . . . . . . . . . . . . . . . . . . . . . . . . . . . Disarmed . | . . . . . . . . . . . . . . . . . . . . . . . . . . . . Reprogrammed . | . . . . . . . . . . . . . . . . . . . . . . . . . . . . Reused . | . . . . . . . . . . . . . . . . . . . . . . . . . . . . Traps Extracted . | . . . . . . . . . . . . . . . . . . . . . . . . . . . . Installed . | . . . . . . . . . . . . . . . . . . . . . . . . . . . . Triggered . | . . . . . . . . . . . . . . . . . . . . . . . . . . . . Machines | -11 -10 -9 -9 -8 -7 -7 -7 -7 -6 -6 -6 -6 -6 -5 -5 -5 -5 -5 -4 -4 -4 -4 -4 -4 -3 -3 -2 ---------- Run | Yrd Mat Mat Sto Mat Fac Low Low Dat Pro Fac Low Low Zio Pro Fac Upp Upp War Pro Fac Ext Cet Arc Hub Res Tes Res Machines Disabled 50 | . . 2 3 1 . . . . . . . . . . 1 1 . 2 . 3 2 1 3 7 2 15 7 Max in Single Turn 2 | . . 1 2 1 . . . . . . . . . . 1 1 . 1 . 2 1 1 1 1 1 2 2 Garrison Access 6 | . . . . 1 . . . . . . . . . . 1 . . . . 1 . . . 1 2 . . Network Hub 1 | . . . . . . . . . . . . . . . . . . . . . . . . 1 . . . Machines Repaired . | . . . . . . . . . . . . . . . . . . . . . . . . . . . . Machines Dismantled 1 | . . . 1 . . . . . . . . . . . . . . . . . . . . . . . . Machines Sabotaged 1 | . . . . . . . . . . . . . . . . . . . . . . . . 1 . . . Overloaded Fab Kills . | . . . . . . . . . . . . . . . . . . . . . . . . . . . . Hacking | -11 -10 -9 -9 -8 -7 -7 -7 -7 -6 -6 -6 -6 -6 -5 -5 -5 -5 -5 -4 -4 -4 -4 -4 -4 -3 -3 -2 --------- Run | Yrd Mat Mat Sto Mat Fac Low Low Dat Pro Fac Low Low Zio Pro Fac Upp Upp War Pro Fac Ext Cet Arc Hub Res Tes Res Machines Accessed 116 | . 2 15 9 9 15 . . 4 . 12 1 . . . 6 1 1 4 . 4 5 1 . 5 10 5 7 Terminals 67 | . 1 11 8 6 7 . . . . 4 . . . . 4 . . . . 1 5 1 . 5 6 4 4 Fabricators 7 | . . . . . 1 . . . . 3 . . . . 1 . . . . 1 . . . . 1 . . Repair Stations 9 | . . 1 1 . 3 . . . . 2 . . . . . . . . . 1 . . . . 1 . . Recycling Units 9 | . 1 1 . 1 3 . . . . 1 . . . . . . . . . . . . . . . . 2 Scanalyzers 7 | . . 2 . 1 1 . . . . 1 . . . . . . . . . . . . . . . 1 1 Garrison Access 6 | . . . . 1 . . . . . 1 . . . . 1 . . . . 1 . . . . 2 . . Total Hacks 386 | . 6 49 26 33 58 . . 26 . 42 1 . . . 14 1 1 10 . 10 12 2 . 17 39 23 16 Successful 239 | . 3 35 17 19 38 . . 26 . 26 1 . . . 3 1 1 10 . 5 6 . . 11 21 11 5 Failed 147 | . 3 14 9 14 20 . . . . 16 . . . . 11 . . . . 5 6 2 . 6 18 12 11 Catastrophic 21 | . . . 1 1 2 . . . . 2 . . . . 2 . . . . 3 2 1 . . 4 1 2 Database Lockouts . | . . . . . . . . . . . . . . . . . . . . . . . . . . . . Manual 183 | . 4 28 14 17 36 . . . . 9 . . . . 4 . . 1 . 5 7 1 . 13 20 17 7 Terminals 229 | . 4 30 24 22 34 . . . . 13 . . . . 10 . . . . 3 12 2 . 17 27 21 10 Fabricators 26 | . . . . . 4 . . . . 13 . . . . 3 . . . . 1 . . . . 5 . . Repair Stations 28 | . . 1 2 . 11 . . . . 7 . . . . . . . . . 4 . . . . 3 . . Recycling Units 22 | . 2 3 . 2 7 . . . . 3 . . . . . . . . . . . . . . . . 5 Scanalyzers 31 | . . 15 . 8 2 . . . . 3 . . . . . . . . . . . . . . . 2 1 Garrison Access 11 | . . . . 1 . . . . . 3 . . . . 1 . . . . 2 . . . . 4 . . Terminal Hacks 93 | . 2 3 6 3 10 . . 26 . 5 1 . . . 1 1 1 10 . . 4 . . 6 9 5 . Record 23 | . . . . . . . . 11 . . . . . . . 1 . 9 . . 1 . . 1 . . . Part Schematic 9 | . 1 . . . . . . 8 . . . . . . . . . . . . . . . . . . . Robot Schematic 4 | . . . . . . . . 4 . . . . . . . . . . . . . . . . . . . Robot Analysis 1 | . . . . . 1 . . . . . . . . . . . . . . . . . . . . . . Prototype ID Bank 11 | . 1 2 2 1 2 . . 3 . . . . . . . . . . . . . . . . . . . Open Door 5 | . . . 2 . . . . . . . 1 . . . . . 1 1 . . . . . . . . . Level Access Points 4 | . . . . . . . . . . 1 . . . . . . . . . . . . . 1 1 1 . Branch Access Points 4 | . . 1 . 1 . . . . . 1 . . . . . . . . . . . . . . 1 . . Terminal Index 4 | . . . . . 1 . . . . . . . . . . . . . . . . . . 1 1 1 . Garrison Index 1 | . . . . . 1 . . . . . . . . . . . . . . . . . . . . . . Alert Level 4 | . . . . . . . . . . . . . . . . . . . . . 1 . . 1 1 1 . Unreport Threat 4 | . . . . . . . . . . . . . . . . . . . . . 1 . . . 3 . . Locate Traps 2 | . . . . . . . . . . 1 . . . . 1 . . . . . . . . . . . . Dispatch Records 1 | . . . . . . . . . . . . . . . . . . . . . . . . 1 . . . Transport Status 1 | . . . . . 1 . . . . . . . . . . . . . . . . . . . . . . Recall Reinforcements 1 | . . . . 1 . . . . . . . . . . . . . . . . . . . . . . . Hauler Manifests 2 | . . . 1 . . . . . . . . . . . . . . . . . . . . 1 . . . Registered Components 4 | . . . 1 . 1 . . . . 1 . . . . . . . . . . 1 . . . . . . Registered Prototypes 3 | . . . . . 1 . . . . 1 . . . . . . . . . . . . . . 1 . . Zone Layout 4 | . . . . . 2 . . . . . . . . . . . . . . . . . . . 1 1 . Protovariant Controls 1 | . . . . . . . . . . . . . . . . . . . . . . . . . . 1 . Fabricator Hacks 10 | . . . . . 1 . . . . 6 . . . . 1 . . . . . . . . . 2 . . Network Status 3 | . . . . . 1 . . . . 1 . . . . 1 . . . . . . . . . . . . Load Schematic 4 | . . . . . . . . . . 3 . . . . . . . . . . . . . . 1 . . Build 3 | . . . . . . . . . . 2 . . . . . . . . . . . . . . 1 . . Repair Station Hacks 18 | . . . 2 . 6 . . . . 6 . . . . . . . . . 2 . . . . 2 . . Scan Component 9 | . . . 1 . 3 . . . . 3 . . . . . . . . . 1 . . . . 1 . . Repair 9 | . . . 1 . 3 . . . . 3 . . . . . . . . . 1 . . . . 1 . . Recycling Unit Hacks 10 | . . 2 . 1 2 . . . . 1 . . . . . . . . . . . . . . . . 4 Process 1 | . . . . . . . . . . . . . . . . . . . . . . . . . . . 1 Retrieve Matter 2 | . . 1 . . . . . . . . . . . . . . . . . . . . . . . . 1 Retrieve Components 7 | . . 1 . 1 2 . . . . 1 . . . . . . . . . . . . . . . . 2 Scanalyzer 29 | . . 15 . 7 2 . . . . 2 . . . . . . . . . . . . . . . 2 1 Insert Component 16 | . . 8 . 3 1 . . . . 1 . . . . . . . . . . . . . . . 2 1 Analyze 13 | . . 7 . 4 1 . . . . 1 . . . . . . . . . . . . . . . . . Garrison Access Hacks 4 | . . . . 1 . . . . . . . . . . 1 . . . . . . . . . 2 . . Seal Access 4 | . . . . 1 . . . . . . . . . . 1 . . . . . . . . . 2 . . Unauthorized Hacks 75 | . 1 15 9 7 17 . . . . 6 . . . . . . . . . 3 2 . . 5 6 4 . Terminals 60 | . . 14 9 6 12 . . . . 1 . . . . . . . . . 2 2 . . 5 5 4 . Track 6 | . . 1 . . 1 . . . . . . . . . . . . . . . . . . 1 1 2 . Assimilate 2 | . . 2 . . . . . . . . . . . . . . . . . . . . . . . . . Botnet 22 | . . 4 2 1 5 . . . . 1 . . . . . . . . . 1 1 . . 2 3 2 . Disrupt 1 | . . . . . . . . . . . . . . . . . . . . . 1 . . . . . . Operators 7 | . . 1 2 . 1 . . . . . . . . . . . . . . 1 . . . 1 1 . . Skim 21 | . . 6 5 5 5 . . . . . . . . . . . . . . . . . . . . . . Sabotage 1 | . . . . . . . . . . . . . . . . . . . . . . . . 1 . . . Fabricators 4 | . . . . . . . . . . 3 . . . . . . . . . . . . . . 1 . . Prioritize 2 | . . . . . . . . . . 1 . . . . . . . . . . . . . . 1 . . Haulers 2 | . . . . . . . . . . 2 . . . . . . . . . . . . . . . . . Repair Stations 6 | . . 1 . . 3 . . . . 1 . . . . . . . . . 1 . . . . . . . Patch 6 | . . 1 . . 3 . . . . 1 . . . . . . . . . 1 . . . . . . . Recycling Units 5 | . 1 . . 1 2 . . . . 1 . . . . . . . . . . . . . . . . . Monitor 1 | . . . . . . . . . . 1 . . . . . . . . . . . . . . . . . Reject 1 | . . . . . 1 . . . . . . . . . . . . . . . . . . . . . . Mask 2 | . . . . 1 1 . . . . . . . . . . . . . . . . . . . . . . Tunnel 1 | . 1 . . . . . . . . . . . . . . . . . . . . . . . . . . Scanalyzers . | . . . . . . . . . . . . . . . . . . . . . . . . . . . . Garrison Access . | . . . . . . . . . . . . . . . . . . . . . . . . . . . . Data Cores Recovered 1 | . . . . . . . . . . 1 . . . . . . . . . . . . . . . . . Used . | . . . . . . . . . . . . . . . . . . . . . . . . . . . . Hacking Detections 91 | . 1 13 7 7 14 . . . . 11 . . . . 5 . . . . 4 5 2 . 4 9 4 5 Full Trace Events 11 | . . 1 1 . . . . . . 3 . . . . . . . . . 1 . . . 1 3 . 1 Feedback Events 2 | . . . 1 . . . . . . 1 . . . . . . . . . . . . . . . . . Corruption 2 | . . . 1 . . . . . . 1 . . . . . . . . . . . . . . . . . Feedback Blocked . | . . . . . . . . . . . . . . . . . . . . . . . . . . . . Robot Schematics Acquired 4 | . . . . . . . . 4 . . . . . . . . . . . . . . . . . . . Robots Built . | . . . . . . . . . . . . . . . . . . . . . . . . . . . . Authchips . | . . . . . . . . . . . . . . . . . . . . . . . . . . . . Time . | . . . . . . . . . . . . . . . . . . . . . . . . . . . . Total Robot Build Rating . | . . . . . . . . . . . . . . . . . . . . . . . . . . . . Part Schematics Acquired 21 | . 1 7 . 3 1 . . 8 . 1 . . . . . . . . . . . . . . . . . Parts Built 3 | . . . . . . . . . . 2 . . . . . . . . . . . . . . 1 . . Authchips 1 | . . . . . . . . . . 1 . . . . . . . . . . . . . . . . . Time 134 | . . . . . . . . . . 122 . . . . . . . . . . . . . . 12 . . Total Part Build Rating 12 | . . . . . . . . . . 11 . . . . . . . . . . . . . . 1 . . Parts Repaired 9 | . . . 1 . 3 . . . . 3 . . . . . . . . . 1 . . . . 1 . . Time 262 | . . . 26 . 94 . . . . 85 . . . . . . . . . 26 . . . . 31 . . Parts Recycled . | . . . . . . . . . . . . . . . . . . . . . . . . . . . . Recycled Matter . | . . . . . . . . . . . . . . . . . . . . . . . . . . . . Retrieved Matter . | . . . . . . . . . . . . . . . . . . . . . . . . . . . . Retrieved Components 31 | . . 3 . 2 13 . . . . 5 . . . . . . . . . . . . . . . . 8 Parts Scanalyzed 12 | . . 7 . 3 1 . . . . 1 . . . . . . . . . . . . . . . . . Part Schematics Acquired 12 | . . 7 . 3 1 . . . . 1 . . . . . . . . . . . . . . . . . Parts Damaged 3 | . . 1 . 1 1 . . . . . . . . . . . . . . . . . . . . . . Bothacking | -11 -10 -9 -9 -8 -7 -7 -7 -7 -6 -6 -6 -6 -6 -5 -5 -5 -5 -5 -4 -4 -4 -4 -4 -4 -3 -3 -2 ------------ Run | Yrd Mat Mat Sto Mat Fac Low Low Dat Pro Fac Low Low Zio Pro Fac Upp Upp War Pro Fac Ext Cet Arc Hub Res Tes Res Used RIF Installer . | . . . . . . . . . . . . . . . . . . . . . . . . . . . . Robots Hacked 9 | . . . . . . . . . . . . . . . . . . . . . 9 . . . . . . Non-combat 4 | . . . . . . . . . . . . . . . . . . . . . 4 . . . . . . Combat 5 | . . . . . . . . . . . . . . . . . . . . . 5 . . . . . . Robot Hacks Applied 10 | . . . . . . . . . . . . . . . . . . . . . 10 . . . . . . parse_system 10 | . . . . . . . . . . . . . . . . . . . . . 10 . . . . . . Manual 1 | . . . . . . . . . . . . . . . . . . . . . 1 . . . . . . Relay Couplers Released 2 | . . . . . . . . . . . . . . . . . . . . 1 . . . 1 . . . Machine Destruction 2 | . . . . . . . . . . . . . . . . . . . . 1 . . . 1 . . . Fabnet Peak Effective % . | . . . . . . . . . . . . . . . . . . . . . . . . . . . . Robots Rewired 22 | . . . . . . . . . . . . . . . . 4 . . . . 18 . . . . . . Allies Hacked . | . . . . . . . . . . . . . . . . . . . . . . . . . . . . Hacks Repelled . | . . . . . . . . . . . . . . . . . . . . . . . . . . . . Allies | -11 -10 -9 -9 -8 -7 -7 -7 -7 -6 -6 -6 -6 -6 -5 -5 -5 -5 -5 -4 -4 -4 -4 -4 -4 -3 -3 -2 -------- Run | Yrd Mat Mat Sto Mat Fac Low Low Dat Pro Fac Low Low Zio Pro Fac Upp Upp War Pro Fac Ext Cet Arc Hub Res Tes Res Total Allies 38 | . . 2 2 . . . . . . . . . . . . 4 . . . . 25 5 . . . . . Largest Group 19 | . . 1 2 1 . . . . . . . . . . . 4 4 4 . . 19 17 13 10 . . . Highest-Rated Group 1110 | . . 10 62 31 . . . . . . . . . . . 117 117 117 . . 1026 1110 853 621 . . . Highest-Rated Ally 159 | . . 10 31 31 . . . . . . . . . . . 30 30 30 . . 159 159 143 96 . . . Total Orders 6 | . . . . . . . . . . . . . . . 1 . . 2 . . . 2 1 . . . . STAY 3 | . . . . . . . . . . . . . . . . . . . . . . 2 1 . . . . GUARD 1 | . . . . . . . . . . . . . . . . . . 1 . . . . . . . . . AID 1 | . . . . . . . . . . . . . . . . . . 1 . . . . . . . . . RETURN 1 | . . . . . . . . . . . . . . . 1 . . . . . . . . . . . . Ally Attacks 347 | . . . 35 3 . . . . . . . . . . . 1 18 15 . . 139 58 23 55 . . . Total Damage 9724 | . . . 462 41 . . . . . . . . . . . 86 189 189 . . 4313 1625 780 2039 . . . Kills 58 | . . . 9 . . . . . . . . . . . . 1 3 . . . 21 8 3 13 . . . Allies Corrupted 7 | . . . . . . . . . . . . . . . . . . . . . 2 . . 5 . . . Allies Melted . | . . . . . . . . . . . . . . . . . . . . . . . . . . . . Intel | -11 -10 -9 -9 -8 -7 -7 -7 -7 -6 -6 -6 -6 -6 -5 -5 -5 -5 -5 -4 -4 -4 -4 -4 -4 -3 -3 -2 ------- Run | Yrd Mat Mat Sto Mat Fac Low Low Dat Pro Fac Low Low Zio Pro Fac Upp Upp War Pro Fac Ext Cet Arc Hub Res Tes Res Active Infowar (turns) 22371 | 23 398 1681 1016 735 1981 1210 882 148 993 1388 1491 547 1163 868 673 739 651 576 625 698 120 . 234 269 725 1239 1298 Optics 1287 | . . . . . . . . . . . . . . . . . . . . . . . . . . . 1287 Sensors 17580 | . . . . 118 1981 1210 882 148 993 1386 1483 547 1162 851 671 698 646 575 625 659 120 . 79 147 560 1092 947 IFF 247 | . . . . . . . . . . 247 . . . . . . . . . . . . . . . . . Terrain 10096 | . . . . . . . . . . 6 1483 546 1160 865 655 739 649 576 624 492 . . 233 137 448 552 931 Traps 378 | . . . . . . . . . . . . . . . . . . . . 378 . . . . . . . Seismic 996 | 23 398 575 . . . . . . . . . . . . . . . . . . . . . . . . . T.N.C. 3231 | . . 1534 1016 681 . . . . . . . . . . . . . . . . . . . . . . . Jamming 2337 | . . . . . . . . . . 14 . . . . . . . . . 231 68 . . 122 666 1236 . ECM 110 | . . . . . . . . . . . . . . . . . . . . . . . . . . . 110 Robot Analysis Total 1 | . . . . . 1 . . . . . . . . . . . . . . . . . . . . . . Derelict Logs Recovered 7 | . . . . . . 2 . . . . 2 . . 1 . 1 . . 1 . . . . . . . . Drone Launches 1 | . . . . . . . . . . . . . . . 1 . . . . . . . . . . . . Drone Recoveries 1 | . . . . . . . . . . . . . . . 1 . . . . . . . . . . . . Exploration | -11 -10 -9 -9 -8 -7 -7 -7 -7 -6 -6 -6 -6 -6 -5 -5 -5 -5 -5 -4 -4 -4 -4 -4 -4 -3 -3 -2 ------------- Run | Yrd Mat Mat Sto Mat Fac Low Low Dat Pro Fac Low Low Zio Pro Fac Upp Upp War Pro Fac Ext Cet Arc Hub Res Tes Res Turns Passed 26762 | 132 398 1681 1016 1636 2295 1277 921 148 1024 1604 1592 547 1281 899 713 781 687 777 631 799 1500 451 314 301 738 1321 1298 Spaces Moved 16029 | 65 150 1036 514 778 1229 776 504 92 489 1063 976 439 1089 647 483 572 532 573 492 470 697 179 205 192 481 591 715 Core 11 | 4 . . . . . . . . . . . . . . . . . . . . . . . . . . 7 Treads 4696 | . 72 188 514 778 1229 776 504 92 489 54 . . . . . . . . . . . . . . . . . Legs 3238 | . . . . . . . . . . . . . . . . . . . . 185 697 179 205 192 481 591 708 Wheels 8084 | 61 78 848 . . . . . . . 1009 976 439 1089 647 483 572 532 573 492 285 . . . . . . . Hover . | . . . . . . . . . . . . . . . . . . . . . . . . . . . . Flight . | . . . . . . . . . . . . . . . . . . . . . . . . . . . . Fastest Speed 50 | 50 90 95 160 155 156 156 156 156 155 100 115 115 115 115 110 115 115 115 115 115 108 108 108 108 113 110 50 Average Speed 133 | 89 171 115 160 159 156 156 156 156 190 113 115 115 115 115 112 115 115 115 115 141 172 158 108 109 126 152 114 Slowest Speed 240 | 100 240 160 160 160 240 156 156 156 232 232 115 115 115 130 115 115 115 115 115 180 181 181 108 182 183 184 187 Overloaded Moves . | . . . . . . . . . . . . . . . . . . . . . . . . . . . . Propulsion Burnouts . | . . . . . . . . . . . . . . . . . . . . . . . . . . . . Robots Hopped . | . . . . . . . . . . . . . . . . . . . . . . . . . . . . Potential Cave-ins 3 | . . . . . . . . . . . . . . 3 . . . . . . . . . . . . . Cave-ins Triggered 2 | . . . 1 . . . . . . . . . . . . . . . . . . . . . . . 1 Exploration Rate (%) 56 | 5 26 95 49 66 32 91 55 68 66 29 91 43 84 80 17 67 64 74 72 13 86 67 83 38 17 74 26 Regions Visited 27 Branch Regions 18 Pre-discovered Areas 14 | . 1 3 . 1 3 1 . 1 . . . . 2 . . 1 . 1 . . . . . . . . . Known Exits Taken 25 | . . 1 1 1 1 1 1 1 1 1 1 1 1 1 1 1 1 1 1 1 1 1 1 1 1 1 . Unknown Exits Taken 2 | 1 1 . . . . . . . . . . . . . . . . . . . . . . . . . . Scrap Searched 24 | . . . . . . 3 8 . 1 . 1 3 2 . . 2 3 . 1 . . . . . . . . Spaces Dug 293 | . . 11 . . . 2 10 . 18 1 36 . . 32 22 10 4 . 31 1 . 11 . 8 15 17 64 Terrain Destroyed 1446 | . . 114 48 . . 2 10 . 95 1 161 7 . 107 29 25 64 139 41 46 10 15 13 15 22 149 333 Melee 14 | . . . . . . 1 10 . 3 . . . . . . . . . . . . . . . . . . Projectile 320 | . . . . . . 1 . . 1 1 40 7 . 17 29 21 12 1 21 15 10 15 13 15 21 34 46 AOE 1111 | . . 114 48 . . . . . 91 . 121 . . 90 . 4 52 138 20 31 . . . . . 115 287 Terrain Rammed . | . . . . . . . . . . . . . . . . . . . . . . . . . . . . Walls Destroyed . | . . . . . . . . . . . . . . . . . . . . . . . . . . . . Machines Disabled . | . . . . . . . . . . . . . . . . . . . . . . . . . . . . Actions | -11 -10 -9 -9 -8 -7 -7 -7 -7 -6 -6 -6 -6 -6 -5 -5 -5 -5 -5 -4 -4 -4 -4 -4 -4 -3 -3 -2 --------- Run | Yrd Mat Mat Sto Mat Fac Low Low Dat Pro Fac Low Low Zio Pro Fac Upp Upp War Pro Fac Ext Cet Arc Hub Res Tes Res Total 19597 | 95 217 1294 628 1007 1492 808 612 97 538 1357 1360 465 1120 757 599 645 585 643 526 567 893 316 258 245 559 887 1027 Wait 1132 | . 20 19 31 33 108 . 85 . . 145 284 . . 65 57 8 11 . . 15 42 91 17 . 3 57 41 Move 16002 | 64 149 1035 513 777 1228 775 503 91 488 1062 975 438 1088 646 482 571 531 572 491 469 696 178 204 191 480 590 715 Hop . | . . . . . . . . . . . . . . . . . . . . . . . . . . . . Pick Up 201 | 2 2 40 7 18 18 2 1 . 1 17 . 4 6 . 5 2 6 8 1 12 2 6 3 4 6 13 15 Fast Attach 120 | 7 . 13 3 8 4 2 . 3 2 12 . 1 8 . 1 3 1 5 . 7 6 3 1 2 4 8 16 Attach 128 | . 3 12 1 12 10 2 . . 1 6 3 1 1 3 4 4 . . 1 7 3 . 1 2 5 17 29 Detach 56 | . 2 2 . 4 . 2 . . . 6 4 . 1 . 2 . 1 2 . 3 4 . 1 2 1 7 12 Swap 406 | . 3 26 15 18 27 5 5 . 15 31 25 2 2 17 8 14 15 5 4 15 22 1 9 12 17 32 61 Drop 242 | . . 28 13 23 18 . 1 3 2 20 . 3 14 . 2 2 8 12 1 12 10 10 3 7 6 20 24 Fire 1206 | 22 37 119 33 111 73 19 6 . 26 58 69 16 . 26 38 41 12 39 28 27 96 27 19 23 34 94 113 Melee 15 | . . . . . . 1 11 . 3 . . . . . . . . . . . . . . . . . . Ram . | . . . . . . . . . . . . . . . . . . . . . . . . . . . . Kick 9 | . . . . . . . . . . . . . . . . . . . . . 1 . . 2 3 2 1 Crush 12 | . 1 . 2 3 6 . . . . . . . . . . . . . . . . . . . . . . Escape Stasis 57 | . . . . . . . . . . . . . . . . . . . . . 10 . . . . 47 . Rewire 1 | . . . . . . . . . . . . . . . . . . . . . 1 . . . . . . Trap . | . . . . . . . . . . . . . . . . . . . . . . . . . . . . Miscellaneous 10 | . . . 10 . . . . . . . . . . . . . . . . . . . . . . . . Route ------- -11/Scrapyard -10/Materials -9/Materials (discovered 6 exits: *Mat x3 / *Min / *Sto x2) -9/Storage -8/Materials (discovered 3 exits: *Fac x3) -7/Factory (discovered 5 exits: Fac x4 / *Low) -7/Lower Caves (discovered 2 exits: *Low / *Zio) -7/Lower Caves (discovered 2 exits: *Fac / *Dat) -7/Data Miner -6/Proximity Caves -6/Factory (discovered 6 exits: *Fac x4 / *Low x2) -6/Lower Caves -6/Lower Caves -6/Zion -5/Proximity Caves -5/Factory (discovered 3 exits: Fac / *Upp x2) -5/Upper Caves (discovered 2 exits: *Upp / *War) -5/Upper Caves (discovered 2 exits: Fac / *War) -5/Warlord -4/Proximity Caves -4/Factory (discovered 4 exits: Res / *Ext x2 / Arm) -4/Extension (discovered 2 exits: *Res / *Cet) -4/Cetus (discovered 2 exits: *Res / *Arc) -4/Archives (discovered 3 exits: *Res / *Hub x2) -4/Hub_04(d) (discovered 4 exits: *Res x4) -3/Research (discovered 5 exits: Res x3 / *Tes x2) -3/Testing -2/Research History --------- Turn | Location | Event 20 | -11/Scrapyard | Discovered new exit (range 16) 133 | -11/Scrapyard | Entered Materials 308 | -10/Materials | Build established: Mutant 439 | -10/Materials | Discovered new exit (range 16) 509 | -10/Materials | Core integrity fell below 50% 531 | -10/Materials | Entered another Materials area 531 | -9/Materials | Evolved 2 slots: Propulsion x1, Utility x1 558 | -9/Materials | Lost 4 parts (1p2n1w) 763 | -9/Materials | Discovered new exit (range 10) 878 | -9/Materials | Discovered new exit (range 8) 984 | -9/Materials | Build established: Scavenger-Mutant 1073 | -9/Materials | Discovered new exit (range 13) 1422 | -9/Materials | Learned location of Zion (-6) 1460 | -9/Materials | Discovered new exit (range 16) 1522 | -9/Materials | Learned location of 1 exit from Recycling 1556 | -9/Materials | Loaded intel: 21 trap records 1582 | -9/Materials | Identified exit to Materials 1600 | -9/Materials | Learned Storage stockpile data 1640 | -9/Materials | Learned Storage machine intel 1652 | -9/Materials | Destroyed 7 combat bots 1731 | -9/Materials | First assault squad dispatched 1786 | -9/Materials | Lost 4 parts (1n1u2w) 2133 | -9/Materials | Identified exit to Mines 2133 | -9/Materials | Identified exit to Storage 2212 | -9/Materials | Entered Storage 2214 | -9/Storage | Loaded intel: 46 machine locations 2369 | -9/Storage | Repaired Huge Storage Unit 2596 | -9/Storage | Build established: Mutant 2655 | -9/Storage | Discovered exit to Materials (range 16) 2665 | -9/Storage | Met a pair of Derelict thieves 2804 | -9/Storage | Destroyed 7 combat bots 2815 | -9/Storage | Core integrity fell below 50% 2822 | -9/Storage | Crushed by falling debris 2822 | -9/Storage | Core integrity fell below 20% 3191 | -9/Storage | Learned location of 2 exits from Materials 3228 | -9/Storage | Entered Materials 3228 | -8/Materials | Accompanied by 1 ally 3228 | -8/Materials | Evolved 2 slots: Utility x2 3229 | -8/Materials | Identified exit to Factory 3353 | -8/Materials | Garrison activated, responded to threat 3937 | -8/Materials | Discovered exit to Factory (range 12) 4384 | -8/Materials | Learned location of 1 exit from Recycling 4453 | -8/Materials | Lost 3 parts (1p1n1u) 4460 | -8/Materials | Learned Factory emergency access door positions 4480 | -8/Materials | Learned location of 2 exits from Lower Caves 4488 | -8/Materials | Learned 4 Factory zone layouts 4490 | -8/Materials | Learned location of 3 exits from Factory 4500 | -8/Materials | Learned Factory repair station intel 4519 | -8/Materials | Learned location of 2 exits from Factory 4864 | -8/Materials | Entered Factory 4864 | -7/Factory | Evolved 2 slots: Propulsion x1, Utility x1 4865 | -7/Factory | Identified exit to Lower Caves 4865 | -7/Factory | Identified exit to Factory 4868 | -7/Factory | Loaded intel: 6 repair station locations 5289 | -7/Factory | Build established: Hacker-Mutant 5984 | -7/Factory | Build established: Scavenger-Mutant 6155 | -7/Factory | Learned Extension security intel 6221 | -7/Factory | Learned 4 Upper Caves zone layouts 6325 | -7/Factory | Loaded intel: 4 scanalyzer locations 6361 | -7/Factory | Learned location of Extension (-4) 6409 | -7/Factory | Learned 2 Proximity Caves zone layouts 6531 | -7/Factory | Learned 2 Extension zone layouts 6645 | -7/Factory | Repaired Lgt. Treads 6688 | -7/Factory | Repaired Adv. Treads? 6696 | -7/Factory | Build established: Hacker-Mutant 6847 | -7/Factory | Repaired Enh. Autogun 7159 | -7/Factory | Entered Lower Caves 7160 | -7/Lower Caves | Identified exit to Lower Caves 7506 | -7/Lower Caves | Attracted the attention of an 0b10 checkpoint 7653 | -7/Lower Caves | Found Alien Artifact 7653 | -7/Lower Caves | Identified Core Expander 7653 | -7/Lower Caves | Installed Core Expander, added new Weapon slot 7763 | -7/Lower Caves | A Derelict revealed a hidden shortcut to a safe place 7805 | -7/Lower Caves | Identified exit to Zion 7984 | -7/Lower Caves | Build established: Hacker-Skirmisher 8436 | -7/Lower Caves | Entered another Lower Caves area 8438 | -7/Lower Caves | Identified exit to Data Miner 8789 | -7/Lower Caves | Build established: Scavenger-Mutant 9114 | -7/Lower Caves | Encountered a Warlord checkpoint 9264 | -7/Lower Caves | Build established: Hacker-Skirmisher 9357 | -7/Lower Caves | Entered Data Miner 9357 | -7/Data Miner | Discovered new exit (range 6) 9389 | -7/Data Miner | Met Data Miner 9418 | -7/Data Miner | Learned location of Section 7 (-2) 9418 | -7/Data Miner | Acquired the access code to Warlord's prototype stash 9440 | -7/Data Miner | Received God Mode back door access code from Data Miner 9502 | -7/Data Miner | Identified exit to Proximity Caves 9505 | -7/Data Miner | Entered Proximity Caves 9508 | -6/Proximity Caves | Spotter reported a threat 9508 | -6/Proximity Caves | Spotter reported a threat 10107 | -6/Proximity Caves | Spotter reported a threat 10349 | -6/Proximity Caves | Spotter reported a threat 10529 | -6/Proximity Caves | Entered Factory 10529 | -6/Factory | Evolved 2 slots: Propulsion x1, Utility x1 10656 | -6/Factory | Fabricated Combat Drone Bay (x1) 10879 | -6/Factory | Search patrols dispatched 10891 | -6/Factory | Repaired Weapon Cycler? 10968 | -6/Factory | Identified exit to Lower Caves 11030 | -6/Factory | Discovered new exit (range 13) 11042 | -6/Factory | Identified exit to Factory 11682 | -6/Factory | Incoming investigation squad redirected 11700 | -6/Factory | Fabricated Lgt. Regenerative Plating (x1) 12077 | -6/Factory | Repaired Hrd. Medium Armor Plating 12100 | -6/Factory | Repaired Hvy. Battle Rifle 12133 | -6/Factory | Entered Lower Caves 12415 | -6/Lower Caves | Build established: Skirmisher 13270 | -6/Lower Caves | Attracted the attention of an 0b10 checkpoint 13410 | -6/Lower Caves | Discovered new exit (range 13) 13437 | -6/Lower Caves | Learned Factory machine intel 13581 | -6/Lower Caves | Entered a destroyed Warlord outpost 13608 | -6/Lower Caves | Build established: Scavenger-Skirmisher 13653 | -6/Lower Caves | Learned Factory trap positions 13678 | -6/Lower Caves | Identified exit to Lower Caves 13725 | -6/Lower Caves | Entered another Lower Caves area 13904 | -6/Lower Caves | Discovered exit to Zion (range 18) 14272 | -6/Lower Caves | Entered Zion 14324 | -6/Zion | Build established: Skirmisher 14363 | -6/Zion | Received a hallucinogenic algorithm 14369 | -6/Zion | Discovered new exit (range 20) 14423 | -6/Zion | System corruption cleaned by Quarantine Array 14659 | -6/Zion | Acquired unknown access codes intercepted by a Zionite 14712 | -6/Zion | Met Imprinter 14869 | -6/Zion | Found Prototype Special Weapon 14869 | -6/Zion | Identified RU-N14's Throwing Claymores 14964 | -6/Zion | Given the Hacking Drone Bay 14974 | -6/Zion | Found Prototype Device 14974 | -6/Zion | Identified Hacking Drone Bay 15352 | -6/Zion | Found Prototype Device 15430 | -6/Zion | Found RU-N14's Throwing Claymores 15432 | -6/Zion | Found RU-N14's Throwing Claymores 15438 | -6/Zion | Found RU-N14's Throwing Claymores 15552 | -6/Zion | Identified exit to Proximity Caves 15553 | -6/Zion | Entered Proximity Caves 16339 | -5/Proximity Caves | Received a Behemoth hack from an annoying Tinkerer 16363 | -5/Proximity Caves | Discovered exit to Factory (range 14) 16452 | -5/Proximity Caves | Entered Factory 16452 | -5/Factory | Evolved 2 slots: Power x1, Propulsion x1 16453 | -5/Factory | Identified exit to Upper Caves 16454 | -5/Factory | Loaded intel: 107 trap records 16455 | -5/Factory | Loaded intel: 248 machine locations 16617 | -5/Factory | Discovered new exit (range 19) 16916 | -5/Factory | Garrison activated, responded to threat 17165 | -5/Factory | Entered Upper Caves 17540 | -5/Upper Caves | Found Alien Artifact 17540 | -5/Upper Caves | Identified Dimensional Node Initializer 17540 | -5/Upper Caves | Initialized slip node 17554 | -5/Upper Caves | Learned location of Armory (-4) 17709 | -5/Upper Caves | Lost 3 parts (1p1u1w) 17905 | -5/Upper Caves | Discovered new exit (range 15) 17916 | -5/Upper Caves | A Derelict revealed a hidden shortcut to "reach the base" 17920 | -5/Upper Caves | Identified exit to Warlord 17927 | -5/Upper Caves | Identified exit to Upper Caves 17946 | -5/Upper Caves | Entered another Upper Caves area 17946 | -5/Upper Caves | Accompanied by 4 allies 18022 | -5/Upper Caves | Discovered new exit (range 13) 18116 | -5/Upper Caves | Build established: Commander-Skirmisher 18248 | -5/Upper Caves | Found Imp. Powered Armor 18578 | -5/Upper Caves | Discovered exit to Warlord (range 15) 18633 | -5/Upper Caves | Entered Warlord 18633 | -5/Warlord | Accompanied by 4 allies 18671 | -5/Warlord | System corruption cleaned by Quarantine Array 18830 | -5/Warlord | Learned location of Testing (-3) 18830 | -5/Warlord | Learned 4 Research zone layouts 18830 | -5/Warlord | Learned 4 Quarantine zone layouts 18830 | -5/Warlord | Learned Armory security intel 18830 | -5/Warlord | Learned Research fabricator intel 18830 | -5/Warlord | Learned Research scanalyzer intel 18830 | -5/Warlord | Learned Research garrison access intel 18914 | -5/Warlord | Visited the Vortex Lab 18914 | -5/Warlord | Warlord's base attacked by MAIN.C 18927 | -5/Warlord | Found Prototype Energy Cannon 18927 | -5/Warlord | Identified Vortex Driver 18929 | -5/Warlord | Found Vortex Driver 18934 | -5/Warlord | Found Prototype Energy Gun 18934 | -5/Warlord | Identified Vortex Rifle 18937 | -5/Warlord | Found Vortex Rifle 18988 | -5/Warlord | Opened Warlord's prototype stash 18992 | -5/Warlord | Found Prototype Reactor 18999 | -5/Warlord | Found Prototype Device 18999 | -5/Warlord | Identified Exp. Focal Shield 19002 | -5/Warlord | Found Prototype Processor 19005 | -5/Warlord | Found Prototype Hackware 19264 | -5/Warlord | Warlord forces counterattacked 19276 | -5/Warlord | Lost 3 allies 19322 | -5/Warlord | Lost 8 allies 19356 | -5/Warlord | Spotted Executioner 19373 | -5/Warlord | Spotted Striker 19382 | -5/Warlord | Spotted Executioner 19398 | -5/Warlord | Destroyed 11 combat bots 19399 | -5/Warlord | Discovered new exit (range 12) 19407 | -5/Warlord | Lost 9 allies 19409 | -5/Warlord | Identified exit to Proximity Caves 19410 | -5/Warlord | Entered Proximity Caves 19703 | -4/Proximity Caves | Build established: Skirmisher 19826 | -4/Proximity Caves | Learned Research stockpile data 19951 | -4/Proximity Caves | Discovered new exit (range 17) 19972 | -4/Proximity Caves | Identified exit to Factory 20041 | -4/Proximity Caves | Entered Factory 20041 | -4/Factory | Evolved 2 slots: Power x1, Utility x1 20042 | -4/Factory | Identified exit to Extension 20042 | -4/Factory | Identified exit to Armory 20305 | -4/Factory | Incoming investigation squad redirected 20379 | -4/Factory | Discovered new exit (range 19) 20469 | -4/Factory | Lost 3 parts (1n1u1w) 20653 | -4/Factory | Repaired Cld. Plasma Cannon? 20840 | -4/Factory | Entered Extension 21106 | -4/Extension | Rescued A7 21259 | -4/Extension | Rescued a captive Derelict 21283 | -4/Extension | Rescued a captive Derelict 21339 | -4/Extension | Build established: Scavenger-Gunner 21444 | -4/Extension | Rescued a captive Derelict 21445 | -4/Extension | Rescued a captive Derelict 21766 | -4/Extension | Spotted B-86 Titan 21775 | -4/Extension | Spotted B-86 Titan 21778 | -4/Extension | Befriended a Behemoth using the annoying Tinkerer's hack 21779 | -4/Extension | Allies destroyed B-86 Titan 21971 | -4/Extension | Rescued a captive Derelict 21972 | -4/Extension | Rescued a captive Derelict 22104 | -4/Extension | Lost 3 allies 22177 | -4/Extension | Build established: Commander-Gunner 22260 | -4/Extension | Discovered new exit (range 10) 22262 | -4/Extension | Discovered new exit (range 6) 22290 | -4/Extension | Identified exit to Cetus 22340 | -4/Extension | First assault squad dispatched 22340 | -4/Extension | Entered Cetus 22340 | -4/Cetus | Accompanied by 14 allies (A7) 22345 | -4/Cetus | Acquired a Cetus Manufacturing Module code from A7 22364 | -4/Cetus | Spotted Cetus Guard 22364 | -4/Cetus | Spotted Cetus Guard 22365 | -4/Cetus | Spotted Cetus Guard 22365 | -4/Cetus | Spotted Cetus Guard 22369 | -4/Cetus | Destroyed Cetus Guard 22371 | -4/Cetus | Destroyed Cetus Guard 22380 | -4/Cetus | Allies destroyed Cetus Guard 22386 | -4/Cetus | Allies destroyed Cetus Guard 22410 | -4/Cetus | Lost 3 allies 22474 | -4/Cetus | Started Cetus Manufacturing Module 22499 | -4/Cetus | Manufactured an Enhanced Grunt 22499 | -4/Cetus | Escorted A7 to Cetus Mainframe 22524 | -4/Cetus | Manufactured an Enhanced Grunt 22549 | -4/Cetus | Manufactured an Enhanced Grunt 22574 | -4/Cetus | Manufactured an Enhanced Grunt 22599 | -4/Cetus | Manufactured an Enhanced Grunt 22628 | -4/Cetus | Discovered new exit (range 16) 22657 | -4/Cetus | Spotted Cetus Guard 22661 | -4/Cetus | Spotted Cetus Guard 22663 | -4/Cetus | Spotted Cetus Guard 22667 | -4/Cetus | Spotted Cetus Guard 22672 | -4/Cetus | Destroyed Cetus Guard 22678 | -4/Cetus | Allies destroyed Cetus Guard 22680 | -4/Cetus | Allies destroyed Cetus Guard 22683 | -4/Cetus | Allies destroyed Cetus Guard 22699 | -4/Cetus | Found Prototype Device 22699 | -4/Cetus | Identified Exp. Thermal Shield 22720 | -4/Cetus | Discovered new exit (range 16) 22726 | -4/Cetus | Met Revision 17 22762 | -4/Cetus | Identified exit to Archives 22791 | -4/Cetus | Entered Archives 22791 | -4/Archives | Accompanied by 13 allies (A7) 22796 | -4/Archives | Received a hacking code to weaken MAIN.C 22837 | -4/Archives | Discovered new exit (range 15) 22857 | -4/Archives | Discovered new exit (range 14) 22869 | -4/Archives | Identified exit to Hub_04(d) 22874 | -4/Archives | Identified System Mapper 22875 | -4/Archives | Identified Exp. Target Analyzer 22883 | -4/Archives | Discovered exit to Hub_04(d) (range 23) 23105 | -4/Archives | Entered Hub_04(d) 23105 | -4/Hub_04(d) | Accompanied by 10 allies 23164 | -4/Hub_04(d) | Identified exit to Research 23198 | -4/Hub_04(d) | Build established: Commander-Skirmisher 23258 | -4/Hub_04(d) | Incoming assault squad redirected 23347 | -4/Hub_04(d) | Network Hub disabled 23365 | -4/Hub_04(d) | Spotted Lightning 23373 | -4/Hub_04(d) | Incoming investigation squad redirected 23376 | -4/Hub_04(d) | Spotted Lightning 23380 | -4/Hub_04(d) | Spotted Lightning 23381 | -4/Hub_04(d) | Spotted Lightning 23386 | -4/Hub_04(d) | Spotted Lightning 23406 | -4/Hub_04(d) | Entered Research 23406 | -3/Research | Evolved 2 slots: Utility x2 23409 | -3/Research | Loaded intel: 4 fabricator locations 23410 | -3/Research | Loaded intel: 6 scanalyzer locations 23411 | -3/Research | Loaded intel: 4 garrison access locations 23411 | -3/Research | Lost 7 allies 23419 | -3/Research | Identified exit to Research 23565 | -3/Research | Identified exit to Testing 23606 | -3/Research | Revision forces began assault on 0b10 23669 | -3/Research | Met up with Revision 17++ 23714 | -3/Research | Found Fusion Bomb Launcher 23716 | -3/Research | Found Fusion Bomb Launcher 23765 | -3/Research | Spotted B-86 Titan 23819 | -3/Research | Fabricated Hcp. Storage Unit (x1) 24029 | -3/Research | Repaired Antimatter Reactor 24106 | -3/Research | Research terminal network offline 24144 | -3/Research | Entered Testing 24164 | -3/Testing | Found Prototype Energy Cannon 24164 | -3/Testing | Identified Disintegrator 24194 | -3/Testing | Found Prototype Energy Cannon 24194 | -3/Testing | Identified Hpw. Disruptor Cannon 24451 | -3/Testing | Identified Vortex Chain Reactor 24494 | -3/Testing | Build established: Hacker-Skirmisher 24762 | -3/Testing | Found Prototype Launcher 24808 | -3/Testing | Scanned by Researcher 24955 | -3/Testing | Identified Z-bomb Delivery System 24955 | -3/Testing | Identified Mobile Refinery Mk. CCLXVII 24984 | -3/Testing | Build established: Hacker-Mutant 25291 | -3/Testing | Found Prototype Device 25291 | -3/Testing | Identified 2N-1CE's Frost Array 25315 | -3/Testing | Build established: Hacker-Skirmisher 25384 | -3/Testing | System corruption reached 10% 25419 | -3/Testing | Found Prototype Energy Cannon 25430 | -3/Testing | Lost 7 parts (1p3n3u) 25465 | -3/Testing | Entered Research 25465 | -2/Research | Evolved 2 slots: Utility x2 25476 | -2/Research | Found Prototype Processor 25476 | -2/Research | Identified Spectral Analyzer 25843 | -2/Research | Found Prototype Device 25843 | -2/Research | Identified System Purifier 25998 | -2/Research | Identified Cld. Nova Cannon 26193 | -2/Research | Lost 4 parts (1p2n1u) 26215 | -2/Research | Found Prototype Processor 26415 | -2/Research | Spotted B-90 Cyclops 26465 | -2/Research | First assault squad dispatched 26487 | -2/Research | Identified Exp. Armor Integrity Analyzer 26490 | -2/Research | Found Exp. Target Analyzer 26493 | -2/Research | Incoming assault squad redirected 26592 | -2/Research | Incoming investigation squad redirected 26636 | -2/Research | Crushed by falling debris 26636 | -2/Research | System corruption reached 10% 26669 | -2/Research | Lost 6 parts (1p2n2u1w) 26685 | -2/Research | Destroyed 12 combat bots 26696 | -2/Research | Cargo convoy interrupted 26696 | -2/Research | Spotted Executioner 26704 | -2/Research | Spotted Executioner 26720 | -2/Research | Core integrity fell below 50% 26722 | -2/Research | Destroyed Executioner 26732 | -2/Research | System corruption reached 30% 26734 | -2/Research | Incoming assault squad redirected 26738 | -2/Research | Destroyed Executioner 26756 | -2/Research | Core integrity fell below 20% 26763 | -2/Research | Destroyed by X-87 Electro with Compact HERF Cannon Last Messages --------------- 26753_ U-05 Engineer builds a Wall. 26753_ K-01 Serf collects debris. 26753_ Vortex penetrates P-80 Master. 26753_ Destroyed Imp. Antigrav System. 26755_ U-05 Engineer builds a Wall. 26755_ P-80 Master resets U-05 Engineer, system corruption cleaned. 26755_ Imp. Matter Neutralizer destroyed. 26755_ Vortex Driver destroyed. 26756_ U-05 Engineer lays Concrete. 26757_ K-01 Serf collects debris. 26757_ U-05 Engineer builds a Wall. 26758_ U-05 Engineer lays Concrete. 26758_ Adv. Power Amplifier destroyed. 26759_ U-05 Engineer lays Concrete. 26761_ U-05 Engineer builds a Wall. 26761_ U-05 Engineer lays Concrete. 26761_ Adv. Energy Well destroyed. 26762_ U-05 Engineer builds a Wall. 26762_ U-05 Engineer lays Concrete. Map ----- +----------------------------------------------------+ | T ###?#?#????##???#???#?????????????????? | | ### #########??##?????#???????????????????? | | ### ###########???#??#????????????????????? | | ##### ########?####?##?#?###??????????????????? | | /#######+############??#??###????????????????????? | | #??######?#???#?????????????????????? | | ######?####?##???? ?????????????????? | | ####?#?####?#???????????????????????? | | """" """ ####?######???###???????????????????? | | """" """ #####?####????#???#?????????????????? | | """" """ ##?#####????##??????????????????????? | | ##???####??????#????????????????????? | | # ##??###??#??#?????????????????????? | | " ###?????##????????????????????????? | | "########### ##????#?????#???????????????????? | | #?#??########?????????????????? | | | = ##?## ??????????????????? | | =!=| # #### ??????????????????? | | #######"#"#### # ## ???????????????????? | | ####[![ # # # ;????#####???????????? | | ####! # # #?? #???????????? | | #### ## ## ## # #???????????? | | #### p # u # + #???????????? | | ## p u w # """ #???????????? | | # [ R % % ; """???????????????? | | ## [ R @ #????????????????????? | | ## # ### ;###????????????????????? | | # # # # ##??????????????????????? | | ### # # # %* p ##?????????????????????? | | #### # # #% = #?????????????????????? | | #?# # ## /x p ##????????????????????? | | ######## # # =#x #?????????????????????? | | ?#?#?##### ## *%# ##?????????????????????? | | ??#?????###### =# !!! #??????????????????????? | | ???????#?#???# # !!! #??????????????????????? | | ????##?##????# # !! " #????????#???????????? | | ??#??#???????# # ###????????????????????? | | ??#??????????# ##########??????????????????????? | | ?????????????# ## ?"#?????????????????????? | | ?????????#???# ## ? #????????????????????? | | ?????????????# ## #?#????????????????????? | | ????????????? # "??????????????????????? | | ????????????? # ""?????????????????????? | | ????????????? # ## ????????????????????? | | ????????????? [!!# #? ???????????????????? | | ?????????? ? [! ? #?? ??????????????????? | | ???????????? [! # #??? ??????????????????? | | ???????????? # ] "????#?????????????????? | | ???????????" # ##?????????????????????? | | ??????????? #"##/"###??????????????????????? | +----------------------------------------------------+ Best States ------------- Heat Dissipation 149 Coolant Potential 100 Energy Generation 93 Energy Capacity 1270 Matter Stores 600 Matter Capacity 600 Sight Range 24 Robot Scan Range 18 Terrain Scan Range 24 Terrain Scan Density 210 ECM Strength 2 Jamming Range 16 Power Amplification 30 Armor Coverage 975 Resistance: KI 30 Resistance: TH 30 Utility Shielding 66 Weapon Cycling 15 Evasion (%) 67 Targeting Accuracy 8 Target Analysis 10 Core Analysis 6 Armor Integrity Analysis 50 Recoil Reduction 4 Energy Filtering 50 Particle Charging 25 Kinecelleration 30 Offensive Hacking 32 Defensive Hacking 21 Authchip Count 1 Item Schematics ----------------- Lrg. Storage Unit | -10/Materials | Hacked Hcp. Storage Unit | -9/Materials | Scanalyzed Seismic Detector | -9/Materials | Scanalyzed Machine Analyzer | -9/Materials | Scanalyzed Imp. Assault Rifle | -9/Materials | Scanalyzed Huge Storage Unit | -9/Materials | Scanalyzed Rocket Launcher | -9/Materials | Scanalyzed Hvy. Assault Rifle | -9/Materials | Scanalyzed Adv. Heat Sink | -8/Materials | Scanalyzed Adv. Targeting Computer | -8/Materials | Scanalyzed Hpw. Tractor Beam | -8/Materials | Scanalyzed Adv. Terrain Scan Processor | -7/Factory | Scanalyzed Combat Drone Bay | -7/Data Miner | Free Lgt. Regenerative Plating | -7/Data Miner | Free Biomechanical Wings | -7/Data Miner | Free Thermal Defense Suite | -7/Data Miner | Free Force Rifle | -7/Data Miner | Free Linear Gravjet | -7/Data Miner | Free Adv. Field Recycling Unit | -7/Data Miner | Free Lance | -7/Data Miner | Free Weapon Cycler | -6/Factory | Scanalyzed Robot Schematics ------------------ H-55 Commando | -7/Data Miner | Free H-66 Slayer | -7/Data Miner | Free I-36 Angel | -7/Data Miner | Free S-27 Virus | -7/Data Miner | Free Fabricated ------------ Combat Drone Bay | x1 | -6/Factory | Authchip Lgt. Regenerative Plating | x1 | -6/Factory Hcp. Storage Unit | x1 | -3/Research Repaired ---------- Huge Storage Unit | 32% | -9/Storage Lgt. Treads | 50% | -7/Factory Adv. Treads | 50% | -7/Factory Enh. Autogun | 1% | -7/Factory Weapon Cycler | 60% | -6/Factory Hrd. Medium Armor Plating | 19% | -6/Factory Hvy. Battle Rifle | 8% | -6/Factory Cld. Plasma Cannon | 29% | -4/Factory Antimatter Reactor | 20% | -3/Research Alien Tech Used ----------------- Core Expander Dimensional Node Initializer Achievements -------------- None Challenges ------------ None Game ------ Seed ProcessingCompositeProjector Manual? 0 Play Time 05:26:09 Cumulative 152.0 hours Start 2025.08.24 @ 03:08:58 End 2025.08.24 @ 23:14:24 Sessions 4 Manual Loads 0 Difficulty Rogue Special Mode None Game No. 67 Rogue 67 Adventurer 0 Explorer 0 Win Type - Total 3 Types 1/0/2/0/0/0/0/0/0/0 Lore% 76 Gallery% 65 Achievement% 78 Wizard Run 0 Options --------- Layout 2 ASCII 0 Keyboard 1 Movement Vi Keybinds 0 Fullscreen 1 Font 28/SwanstonBold Map View 50x52 Zoom Use 0% Tactical HUD 1 Map Filters NONE Filters NONE Steam 1 RUN: 670c118e-dcec-43a6-b248-846c55fbabe0